bitfinex-derivatives/quotes_ETHF0:USTF0_20250212
["timestamp","ask_amount","ask_price","bid_price","bid_amount"]
[1739349219802,2.81934941,2633.3,2633.2,1.19509152]
[1739349221695,1.7064,2633.8,2633.2,1.19509152]
[1739349221890,1.701,2633.7,2633.4,3.2078]
[1739349222302,2.81934941,2633.5,2633.4,3.2078]
[1739349224305,2.88022255,2633.5,2633.4,3.2078]
[1739349224596,8.88022255,2633.5,2633.4,3.2078]
[1739349224796,6.08802255,2633.5,2633.2,0.00569152]
[1739349224998,2.81934941,2633.3,2633.2,0.00569152]
[1739349225198,2.88022255,2633.3,2633.2,0.00569152]
[1739349225590,2.81934941,2633.3,2633.2,0.00569152]
[1739349227304,2.88022727,2633.3,2633.2,0.00569152]
[1739349229705,2.81934941,2633.3,2633.2,0.00569152]
[1739349235419,2.81934941,2633.3,2633.2,3.21349152]
[1739349236712,2.8802261,2633.3,2633.2,0.00569152]
[1739349236917,2.81934941,2633.3,2633.2,0.00569152]
[1739349239215,2.88022546,2633.3,2633.2,0.00569152]
[1739349241206,2.8802278,2633.3,2633.2,0.00569152]
[1739349242117,6.27777185,2633.3,2633.2,0.00569152]
[1739349242310,9.48557185,2633.3,2633.2,0.00569152]
[1739349242813,9.48557907,2633.3,2633.2,0.00569152]
[1739349243511,9.48558079,2633.3,2633.2,0.00569152]
[1739349245609,2.88023674,2633.3,2633.2,0.00569152]
[1739349246322,4.57923674,2633.3,2633.2,0.00569152]
[1739349249722,4.51834941,2633.3,2633.2,0.00569152]
[1739349250023,4.57922507,2633.3,2633.2,0.00569152]
[1739349250516,4.51334941,2633.3,2633.2,0.00569152]
[1739349251317,2.81934941,2633.3,2633.2,0.00569152]
[1739349254419,4.02012737,2633.3,2633.2,0.00569152]
[1739349254816,7.41767142,2633.3,2633.2,0.00569152]
[1739349255618,4.02012737,2633.3,2633.2,0.00569152]
[1739349256019,2.88022737,2633.3,2633.2,0.00569152]
[1739349256338,2.81934941,2633.3,2633.2,3.21349152]
[1739349256925,1.694,2633.4,2633.2,3.21349152]
[1739349257220,2.81934941,2633.4,2633.2,3.80679152]
[1739349257524,1.695,2633.6,2633.2,3.80679152]
[1739349257826,2.81934941,2633.5,2633.2,3.80679152]
[1739349262222,2.81934941,2633.5,2633.3,40.8]
[1739349262727,2.81934941,2633.5,2633.4,0.5759]
[1739349267527,2.81934941,2633.5,2633.3,2.998]
[1739349267736,2.81934941,2633.4,2633.3,2.998]
[1739349267930,2.81934941,2633.5,2633.3,2.998]
[1739349273033,2.81934941,2633.4,2633.3,2.998]
[1739349273337,4.48354941,2633.4,2633.2,3.80679152]
[1739349273537,2.81934941,2633.3,2633.2,3.80679152]
[1739349274336,2.81934941,2633.3,2633.2,2.21620662]
[1739349280532,2.81934941,2633.3,2633.0,0.00569152]
[1739349280738,2.81934941,2633.2,2633.0,0.00569152]
[1739349280934,1.6642,2633.4,2633.0,0.00569152]
[1739349281232,2.81934941,2633.1,2633.0,0.00569152]
[1739349283228,4.50634941,2633.1,2633.0,0.00569152]
[1739349283539,4.5672353,2633.1,2633.0,0.00569152]
[1739349284038,4.5672353,2633.1,2632.6,3.2078]
[1739349284229,2.81934941,2632.7,2632.6,3.2078]
[1739349286128,2.81934941,2632.7,2632.4,0.58129152]
[1739349286332,2.81934941,2632.5,2632.4,0.58129152]
[1739349296935,2.81934941,2632.5,2632.4,0.00569152]
[1739349301347,0.00569152,2632.9,2632.4,3.00369152]
[1739349301647,0.00569152,2632.9,2632.8,3.2078]
[1739349301847,0.00569152,2632.9,2632.8,3.7927]
[1739349303142,0.00569152,2632.9,2632.8,11.2657]
[1739349303643,0.00569152,2632.9,2632.8,52.0657]
[1739349304749,0.00569152,2632.9,2632.8,52.25220871]
[1739349304946,2.82504093,2632.9,2632.8,52.25220871]
[1739349305136,2.82504093,2632.9,2632.8,11.2657]
[1739349306351,2.82504093,2632.9,2632.8,6.2058]
[1739349306554,4.50804093,2632.9,2632.8,6.2058]
[1739349306851,4.56892804,2632.9,2632.8,6.2058]
[1739349307051,4.56892804,2632.9,2632.4,0.00569152]
[1739349307250,2.81934941,2632.5,2632.4,0.00569152]
[1739349308055,2.88024568,2632.5,2632.4,0.00569152]
[1739349309050,2.88024726,2632.5,2632.4,0.00569152]
[1739349311541,2.81934941,2632.5,2632.4,0.00569152]
[1739349314857,4.50234941,2632.5,2632.4,0.00569152]
[1739349315154,4.50234941,2632.5,2632.4,3.40323557]
[1739349315651,4.50234941,2632.5,2632.4,3.98803557]
[1739349315957,2.81934941,2632.5,2632.4,3.98803557]
[1739349316656,1.1373,2632.8,2632.4,3.98803557]
[1739349316858,2.8203,2632.8,2632.6,3.2078]
[1739349317048,0.00569152,2632.9,2632.7,3.39754405]
[1739349317250,2.82504093,2632.9,2632.8,40.8]
[1739349318951,2.82504093,2632.9,2632.6,3.2078]
[1739349319152,2.81934941,2632.7,2632.6,3.2078]
[1739349319657,3.39384941,2632.7,2632.6,3.2078]
[1739349320656,2.81934941,2632.7,2632.6,3.2078]
[1739349325056,1.1756,2632.8,2632.6,3.2078]
[1739349325259,2.81934941,2632.7,2632.6,3.2078]
[1739349325554,0.6081,2632.8,2632.6,3.2078]
[1739349325761,2.81934941,2632.8,2632.6,3.2078]
[1739349326156,2.81934941,2632.8,2632.7,3.39754405]
[1739349326352,0.00569152,2632.9,2632.7,6.39554405]
[1739349326549,2.82504093,2632.9,2632.7,6.39554405]
[1739349327157,2.81934941,2632.8,2632.7,6.39554405]
[1739349327861,0.00569152,2632.9,2632.7,6.39554405]
[1739349328062,2.82504093,2632.9,2632.7,6.39554405]
[1739349328454,0.00569152,2632.9,2632.7,6.39554405]
[1739349329162,1.783,2633.6,2632.7,6.39554405]
[1739349329163,1.683,2633.5,2632.7,6.39554405]
[1739349329363,2.81934941,2633.3,2633.1,3.2078]
[1739349329556,1.783,2633.6,2633.2,0.5941]
[1739349329856,2.81934941,2633.2,2633.1,3.7891]
[1739349330764,2.81934941,2633.2,2633.1,3.2078]
[1739349330959,2.81934941,2633.2,2632.8,1.1754]
[1739349331163,2.81934941,2632.9,2632.8,1.1754]
[1739349335769,2.81934941,2632.9,2632.8,4.1734]
[1739349340170,2.81934941,2632.9,2632.8,2.998]
[1739349341664,2.81934941,2632.9,2632.7,3.2078]
[1739349341966,4.52294941,2632.8,2632.7,3.2078]
[1739349343469,2.81934941,2632.8,2632.7,3.2078]
[1739349343662,1.7143,2633.2,2632.7,9.60334405]
[1739349343862,2.81934941,2632.9,2632.8,0.5801]
[1739349344062,2.81934941,2632.9,2632.8,3.7879]
[1739349347665,2.81934941,2632.9,2632.8,6.7859]
[1739349348672,2.81934941,2632.9,2632.8,3.5781]
[1739349348867,0.00569152,2633.4,2632.8,6.7859]
[1739349349074,0.00569152,2633.4,2633.3,3.2078]
[1739349349572,2.82504093,2633.4,2633.3,3.2078]
[1739349355072,0.00569152,2633.4,2633.3,3.2078]
[1739349355277,2.82504093,2633.4,2633.3,3.2078]
[1739349359471,2.82504093,2633.4,2633.3,6.2058]
[1739349359681,2.82504093,2633.4,2633.3,47.0058]
[1739349361374,2.82504093,2633.4,2633.3,6.2058]
[1739349364081,2.82504093,2633.4,2633.3,47.5614]
[1739349365484,2.82504093,2633.4,2633.3,44.5634]
[1739349365782,2.82504093,2633.4,2633.3,41.3556]
[1739349366079,2.82504093,2633.4,2633.3,44.5634]
[1739349366676,2.82504093,2633.4,2633.3,3.2078]
[1739349371588,2.88591518,2633.4,2633.3,3.2078]
[1739349372891,6.06656577,2633.4,2632.8,40.8]
[1739349373190,3.2078,2633.2,2632.8,40.8]
[1739349373383,3.2078,2633.2,2632.7,2.998]
[1739349373384,0.06087425,2633.1,2632.7,2.998]
[1739349373886,3.2078,2633.2,2632.7,2.998]
[1739349374090,0.06088256,2633.1,2632.7,2.998]
[1739349375592,3.2078,2632.9,2632.5,3.39754405]
[1739349375793,1.1289,2632.8,2632.4,0.58599152]
[1739349376291,0.607,2632.7,2632.4,0.58599152]
[1739349377284,0.607,2632.7,2632.4,0.00569152]
[1739349377482,2.289,2632.7,2632.4,0.00569152]
[1739349382387,0.06089234,2632.6,2632.4,0.00569152]
[1739349382893,3.2078,2632.6,2632.4,0.00569152]
[1739349384383,0.06089616,2632.5,2632.4,0.00569152]
[1739349384589,3.2078,2632.6,2632.4,0.00569152]
[1739349384892,0.06089644,2632.5,2632.4,0.00569152]
[1739349385194,3.2078,2632.6,2632.4,0.00569152]
[1739349385892,0.06089663,2632.5,2632.4,0.00569152]
[1739349386689,0.0608972,2632.5,2632.4,0.00569152]
[1739349389790,3.2078,2632.6,2632.4,0.00569152]
[1739349389995,0.06089401,2632.5,2632.4,0.00569152]
[1739349391592,0.06089503,2632.5,2632.4,0.00569152]
[1739349393191,1.683,2632.5,2632.4,0.00569152]
[1739349393592,3.2078,2632.6,2632.4,0.00569152]
[1739349393788,3.2078,2632.6,2632.4,0.57529152]
[1739349394190,3.2078,2632.6,2632.5,40.8]
[1739349394399,3.2078,2632.6,2632.4,0.57529152]
[1739349394896,3.2078,2632.6,2632.4,41.37529152]
[1739349395494,3.2078,2632.6,2632.4,0.57529152]
[1739349398396,1.683,2632.7,2632.4,0.57529152]
[1739349400503,0.06089348,2632.6,2632.4,0.57529152]
[1739349402300,1.683,2632.7,2632.4,0.57529152]
[1739349402502,0.06089358,2632.6,2632.4,0.57529152]
[1739349403097,0.06089358,2632.6,2632.4,0.00569152]
[1739349403304,0.5894,2632.5,2632.4,0.00569152]
[1739349405101,3.7972,2632.5,2632.4,0.00569152]
[1739349405303,3.8580996,2632.5,2632.4,0.00569152]
[1739349406906,9.8580996,2632.5,2632.4,0.00569152]
[1739349407199,9.8580996,2632.5,2632.4,0.0035269]
[1739349409705,9.85810583,2632.5,2632.4,0.0035269]
[1739349410008,3.85810583,2632.5,2632.4,0.0035269]
[1739349411009,3.85810634,2632.5,2632.4,0.0035269]
[1739349411904,3.85810684,2632.5,2632.4,0.0035269]
[1739349412104,3.26870684,2632.5,2632.4,0.0035269]
[1739349412308,3.84790684,2632.5,2632.4,0.0035269]
[1739349414510,3.84790373,2632.5,2632.4,0.0035269]
[1739349416113,5.5299034,2632.5,2632.4,0.0035269]
[1739349417815,5.52990348,2632.5,2632.4,0.0035269]
[1739349419610,5.52990334,2632.5,2632.4,0.0035269]
[1739349420617,4.95070334,2632.5,2632.4,0.0035269]
[1739349420912,3.26870334,2632.5,2632.4,0.0035269]
[1739349421118,4.95069614,2632.5,2632.4,0.0035269]
[1739349421312,3.26869614,2632.5,2632.4,0.0035269]
[1739349421821,1.682,2632.6,2632.4,0.0035269]
[1739349422422,4.8898,2632.8,2632.4,0.0035269]
[1739349422624,4.8898,2632.8,2632.5,3.39754405]
[1739349422917,1.682,2633.0,2632.6,41.3767]
[1739349423126,1.682,2633.0,2632.8,3.39754405]
[1739349423329,1.682,2633.0,2632.9,1.1647]
[1739349426025,1.682,2633.0,2632.9,0.5702]
[1739349427023,1.682,2633.0,2632.6,3.5747]
[1739349427227,1.74288441,2633.0,2632.6,4.156]
[1739349427531,1.78778723,2632.9,2632.6,4.156]
[1739349427731,1.7269,2632.9,2632.6,4.156]
[1739349427932,1.7269,2632.9,2632.5,3.2078]
[1739349428130,3.39754405,2632.7,2632.4,0.0035269]
[1739349428426,3.2078,2632.5,2632.4,0.0035269]
[1739349428630,3.26868853,2632.5,2632.4,0.0035269]
[1739349429528,0.06088853,2632.5,2632.4,0.0035269]
[1739349429730,1.682,2632.8,2632.4,3.0015269]
[1739349429929,1.682,2632.8,2632.5,3.39754405]
[1739349430233,1.682,2632.8,2632.6,0.607]
[1739349430430,1.682,2632.8,2632.6,1.178]
[1739349432531,4.8898,2633.2,2632.6,1.178]
[1739349432733,0.06088175,2633.1,2632.6,1.178]
[1739349433035,0.06088175,2633.1,2632.7,40.8]
[1739349433235,0.06088175,2633.1,2632.8,0.5639]
[1739349433736,0.06088175,2633.1,2632.8,3.5619]
[1739349434528,3.2078,2632.9,2632.8,3.5619]
[1739349434725,3.2078,2632.9,2632.8,2.998]
[1739349434925,3.26868878,2632.9,2632.8,2.998]
[1739349436435,3.268694,2632.9,2632.8,2.998]
[1739349438733,4.028344,2632.9,2632.8,2.998]
[1739349439127,4.028344,2632.9,2632.4,0.0035269]
[1739349439328,3.2078,2632.5,2632.4,0.0035269]
[1739349439524,4.950694,2632.5,2632.4,0.0035269]
[1739349441535,4.95070171,2632.5,2632.4,0.0035269]
[1739349442437,4.8898,2632.5,2632.4,0.0035269]
[1739349444733,4.95069964,2632.5,2632.4,0.0035269]
[1739349445331,4.95069983,2632.5,2632.4,0.0035269]
[1739349445729,4.95069979,2632.5,2632.4,0.0035269]
[1739349447245,4.95069971,2632.5,2632.4,0.0035269]
[1739349448138,4.8898,2632.5,2632.4,0.0035269]
[1739349450141,0.6061,2632.7,2632.4,0.0035269]
[1739349450438,4.8898,2633.1,2632.5,3.39754405]
[1739349450741,0.06088543,2633.0,2632.6,40.8]
[1739349451245,4.8898,2633.1,2632.6,40.8]
[1739349454548,4.8898,2633.1,2632.6,42.65803372]
[1739349456345,1.16019152,2633.4,2632.9,3.2078]
[1739349456346,0.00569152,2633.4,2632.9,3.2078]
[1739349456539,0.00569152,2633.4,2633.2,6.60534405]
[1739349457042,0.00569152,2633.4,2633.3,42.65803372]
[1739349457241,3.2078,2634.1,2633.3,42.65803372]
[1739349457537,1.681,2634.3,2633.8,3.39754405]
[1739349457740,1.681,2634.3,2633.9,1.1917]
[1739349459041,3.21349152,2634.4,2633.9,1.1917]
[1739349459042,0.00569152,2634.4,2634.1,6.60534405]
[1739349460537,0.00569152,2634.4,2634.2,0.5983]
[1739349461249,0.00569152,2634.4,2634.2,2.45633372]
[1739349463138,0.00569152,2634.4,2634.1,3.39754405]
[1739349463139,3.2078,2634.3,2633.9,2.44173372]
[1739349463334,3.2078,2634.0,2633.9,1.85803372]
[1739349463541,3.26865336,2634.0,2633.9,1.85803372]
[1739349465541,3.26865336,2634.0,2633.8,0.00569152]
[1739349465741,0.06085336,2633.9,2633.8,0.00569152]
[1739349465946,0.63835336,2633.9,2633.8,0.00569152]
[1739349466141,3.39754405,2633.8,2632.9,3.39754405]
[1739349466341,3.2078,2633.2,2632.6,7.76564405]
[1739349467344,3.2078,2633.2,2632.9,3.39754405]
[1739349469449,3.2078,2633.2,2632.6,7.77133557]
[1739349471145,3.2078,2633.2,2632.9,3.39754405]
[1739349471346,3.2078,2633.5,2632.9,6.60534405]
[1739349471555,3.2078,2633.5,2633.3,3.39754405]
[1739349471945,3.2078,2633.5,2633.4,40.8]
[1739349472847,4.94966875,2633.5,2633.0,1.85803372]
[1739349473047,0.62486875,2633.4,2633.0,1.85803372]
[1739349473250,0.564,2633.4,2633.0,1.85803372]
[1739349473449,3.2078,2633.2,2633.0,1.85803372]
[1739349478363,3.2078,2633.2,2632.8,40.8]
[1739349478862,3.2078,2632.9,2632.6,0.00569152]
[1739349479158,2.2449,2632.8,2632.6,0.00569152]
[1739349479356,2.30579019,2632.8,2632.6,40.80569152]
[1739349479550,2.2449,2632.8,2632.6,40.80569152]
[1739349479956,2.2449,2632.8,2632.6,0.00569152]
[1739349481763,0.64009675,2632.7,2632.6,0.00569152]
[1739349483155,0.64009775,2632.7,2632.6,0.00569152]
[1739349484866,0.64009634,2632.7,2632.6,0.00569152]
[1739349487666,2.32109634,2632.7,2632.6,0.00569152]
[1739349488063,5.71864039,2632.7,2632.6,0.00569152]
[1739349489262,5.71864039,2632.7,2631.6,5.06583372]
[1739349489560,3.2078,2632.1,2631.6,3.2078]
[1739349489765,1.74189634,2632.0,2631.6,3.2078]
[1739349489960,1.681,2632.0,2631.6,3.2078]
[1739349495169,3.2078,2632.1,2631.8,3.39754405]
[1739349495358,3.2078,2632.1,2631.9,0.5799]
[1739349495558,3.2078,2632.1,2632.0,0.5732]
[1739349495868,3.2078,2632.1,2631.9,0.5799]
[1739349496067,0.06091109,2632.0,2631.5,46.05915005]
[1739349496371,0.06091109,2632.0,2631.6,0.5501]
[1739349496870,4.8888,2632.0,2631.6,0.5501]
[1739349500968,3.2078,2632.0,2631.8,3.39754405]
[1739349501869,2.979,2632.7,2631.8,9.39754405]
[1739349502075,4.08255004,2633.3,2632.2,3.2078]
[1739349502076,1.68669152,2633.0,2632.2,3.2078]
[1739349502374,0.06088857,2632.9,2632.3,0.5724]
[1739349502574,0.06088857,2632.9,2632.4,3.39754405]
[1739349502771,0.06088857,2632.9,2632.5,40.8]
[1739349505071,0.06088857,2632.9,2632.5,41.3563]
[1739349506379,0.00569152,2633.0,2632.7,3.39754405]
[1739349507467,0.00569152,2633.0,2632.5,44.5641]
[1739349508168,0.06088596,2632.9,2632.5,3.7641]
[1739349509372,0.00569152,2633.0,2632.5,3.7641]
[1739349510672,0.06088408,2632.9,2632.5,3.7641]
[1739349510878,0.00569152,2633.0,2632.5,3.7641]
[1739349511468,0.06088537,2632.9,2632.5,3.7641]
[1739349512473,0.00569152,2633.0,2632.5,3.7641]
[1739349513370,0.06088618,2632.9,2632.5,3.2078]
[1739349514681,0.00569152,2633.0,2632.5,3.2078]
[1739349514882,0.06088565,2632.9,2632.5,3.2078]
[1739349516274,0.00569152,2633.0,2632.7,3.39754405]
[1739349517281,0.00569152,2633.0,2632.6,0.6007]
[1739349526681,0.060886,2632.9,2632.4,8.46337777]
[1739349526881,1.681,2632.8,2632.4,9.07117777]
[1739349528583,1.681,2632.9,2632.4,9.07117777]
[1739349531376,0.00569152,2633.0,2632.4,9.07117777]
[1739349531687,0.00569152,2633.0,2632.7,3.39754405]
[1739349531887,0.00569152,2633.0,2632.8,0.5866]
[1739349533387,0.06088567,2632.9,2632.4,9.07117777]
[1739349533591,0.64198567,2632.9,2632.5,0.6034]
[1739349533891,0.5811,2632.9,2632.5,0.6034]
[1739349535189,0.00569152,2633.0,2632.5,0.6034]
[1739349537297,0.06088544,2632.9,2632.5,0.6034]
[1739349537494,0.00569152,2633.0,2632.5,0.6034]
[1739349537695,0.06088552,2632.9,2632.5,0.6034]
[1739349538593,0.00569152,2633.0,2632.5,0.6034]
[1739349538793,0.06088553,2632.9,2632.5,0.6034]
[1739349538994,0.00569152,2633.0,2632.5,0.6034]
[1739349539198,0.06088586,2632.9,2632.5,0.6034]
[1739349540102,0.00569152,2633.0,2632.5,0.6034]
[1739349540299,0.06088741,2632.9,2632.5,0.6034]
[1739349543504,1.1813,2632.8,2632.5,0.6034]
[1739349549013,3.2078,2632.9,2632.5,0.6034]
[1739349549214,4.3647,2632.9,2632.5,0.6034]
[1739349549808,0.06088899,2632.8,2632.4,1.85803372]
[1739349550112,0.06088899,2632.8,2632.2,3.8097]
[1739349550415,0.5537,2632.7,2632.2,3.8097]
[1739349550611,0.06088899,2632.6,2632.2,3.8097]
[1739349550912,1.68,2632.5,2632.2,3.8097]
[1739349551115,0.5932,2632.4,2632.2,3.8097]
[1739349551313,1.18,2632.4,2632.2,3.8097]
[1739349551513,1.18,2632.4,2632.2,0.6019]
[1739349551711,1.18,2632.4,2632.1,41.3599]
[1739349551712,0.06090701,2632.3,2632.1,41.3599]
[1739349552016,3.2078,2632.2,2632.1,41.3599]
[1739349552313,3.2078,2632.2,2631.9,2.41603372]
[1739349552715,0.5732,2632.1,2631.7,0.6069]
[1739349552916,0.5732,2632.1,2631.8,40.8]
[1739349553512,0.0609105,2632.0,2631.8,40.8]
[1739349553715,0.5732,2632.1,2631.8,40.8]
[1739349553912,3.2078,2632.2,2631.8,40.8]
[1739349554114,0.06090768,2632.1,2631.8,40.8]
[1739349556717,0.06090768,2632.1,2631.8,44.19754405]
[1739349557114,3.2078,2632.2,2631.8,44.19754405]
[1739349558422,3.2078,2632.2,2631.8,46.05557777]
[1739349561318,3.2078,2632.5,2632.1,6.60534405]
[1739349561525,1.681,2632.6,2632.2,1.7773]
[1739349561732,1.681,2632.6,2632.4,3.39754405]
[1739349562016,1.681,2632.6,2632.4,44.19754405]
[1739349562723,1.681,2632.9,2632.4,44.19754405]
[1739349563224,1.68669152,2633.0,2632.7,3.39754405]
[1739349563521,0.00569152,2633.0,2632.8,1.7335]
[1739349565013,0.00569152,2633.0,2632.8,3.59153372]
[1739349569825,0.00569152,2633.0,2632.8,3.00333372]
[1739349574340,3.2078,2632.9,2632.5,1.85803372]
[1739349574633,3.2078,2632.6,2632.3,1.85803372]
[1739349575229,0.06089939,2632.5,2632.0,1.85803372]
[1739349575933,0.06089939,2632.5,2632.1,40.8]
[1739349580534,0.06089939,2632.5,2632.1,44.19754405]
[1739349581938,0.06089939,2632.5,2632.1,40.8]
[1739349582140,0.06089928,2632.4,2631.9,1.136]
[1739349582349,1.68,2632.3,2631.9,1.136]
[1739349582640,2.2499,2632.3,2631.9,2.99403372]
[1739349583844,1.22750578,2632.2,2631.6,45.86583372]
[1739349584144,0.06090578,2632.1,2631.6,46.45173372]
[1739349584945,0.06090578,2632.1,2631.6,47.00283372]
[1739349585143,1.1666,2632.2,2631.6,47.00283372]
[1739349585335,0.0609072,2632.1,2631.6,47.00283372]
[1739349585943,1.1666,2632.2,2631.6,47.00283372]
[1739349587338,0.06090574,2632.1,2631.6,47.00283372]
[1739349588346,3.2078,2632.0,2631.6,47.00283372]
[1739349589745,1.1666,2632.2,2631.6,47.00283372]
[1739349589946,0.06091041,2632.1,2631.6,47.00283372]
[1739349593742,6.60534405,2631.7,2631.5,0.00357228]
[1739349593945,3.45951041,2631.6,2630.8,0.5553]
[1739349594144,0.06091041,2631.5,2630.8,0.5553]
[1739349594345,3.2078,2631.4,2630.8,0.5553]
[1739349594549,0.06091041,2631.3,2630.8,0.5553]
[1739349594748,3.3986,2631.6,2630.8,0.5553]
[1739349594942,0.06092531,2631.5,2630.8,0.5553]
[1739349595143,0.06661683,2631.5,2630.8,0.5553]
[1739349595443,0.06092531,2631.4,2630.8,0.5553]
[1739349595637,0.06092531,2631.4,2630.9,3.39754405]
[1739349595844,0.06092531,2631.4,2630.9,3.99504405]
[1739349596049,1.68,2631.3,2631.0,3.2078]
[1739349596747,1.68,2631.3,2630.9,3.99504405]
[1739349597344,1.68,2631.3,2630.9,3.39754405]
[1739349597649,1.68,2631.3,2630.8,0.5553]
[1739349597852,0.06093062,2631.2,2630.8,0.5553]
[1739349598348,1.1987,2631.1,2630.8,0.5553]
[1739349600150,1.68,2631.3,2630.8,0.5553]
[1739349600347,0.06092953,2631.2,2630.8,0.5553]
[1739349600550,1.68,2631.3,2630.8,0.5553]
[1739349600746,0.06092806,2631.2,2630.8,0.5553]
[1739349601050,1.68,2631.1,2630.8,0.5553]
[1739349607349,1.68,2631.2,2630.8,0.5553]
[1739349609156,1.68,2631.3,2630.8,0.5553]
[1739349609746,1.68,2631.4,2631.0,3.2078]
[1739349610050,1.68,2631.4,2631.1,1.1618]
[1739349611849,1.68569152,2631.5,2631.1,3.01983372]
[1739349614452,3.39754405,2631.4,2631.1,1.85803372]
[1739349614659,0.06092837,2631.3,2631.1,1.85803372]
[1739349617151,0.06094056,2631.2,2631.1,1.85803372]
[1739349617351,0.06094056,2631.2,2630.7,3.2078]
[1739349617655,3.39754405,2630.9,2630.7,3.2078]
[1739349617854,2.89864056,2630.8,2630.7,3.2078]
[1739349618360,2.89864315,2630.8,2630.7,3.2078]
[1739349619160,12.10644315,2630.8,2629.9,3.2078]
[1739349619362,12.10644315,2630.8,2630.1,0.5489]
[1739349619363,3.39754405,2630.4,2630.1,0.5489]
[1739349619757,0.5608,2630.3,2630.1,0.5489]
[1739349620957,0.5608,2630.3,2630.0,40.8]
[1739349621164,3.39754405,2630.1,2629.7,0.5774]
[1739349621457,3.39754405,2629.8,2629.1,0.5623]
[1739349621659,0.61477033,2629.7,2629.3,0.5774]
[1739349621858,4.8878,2629.6,2629.3,0.5774]
[1739349622165,1.68,2629.5,2629.1,42.65803372]
[1739349622360,1.68,2629.5,2629.2,0.5774]
[1739349623262,5.07754405,2629.5,2628.9,3.2078]
[1739349623457,0.06098105,2629.4,2628.9,3.2078]
[1739349625768,3.39754405,2629.2,2628.9,3.2078]
[1739349625965,0.6016,2629.1,2628.9,3.2078]
[1739349629372,1.681,2629.1,2629.0,40.8]
[1739349629577,1.681,2629.2,2629.0,40.8]
[1739349629875,1.1822,2629.5,2629.1,0.5984]
[1739349630171,1.681,2629.4,2629.1,0.5984]
[1739349630571,4.8888,2629.6,2629.1,2.45643372]
[1739349631777,4.8888,2629.6,2629.1,5.85397777]
[1739349631974,1.681,2629.6,2629.2,3.2078]
[1739349632280,1.681,2629.6,2629.3,0.5979]
[1739349634879,0.06097767,2629.5,2629.1,43.25643372]
[1739349635084,1.26287767,2629.5,2629.1,43.25643372]
[1739349635385,1.2019,2629.5,2629.1,43.25643372]
[1739349635684,3.2078,2629.9,2629.4,3.39754405]
[1739349636473,3.2078,2629.9,2629.5,1.85803372]
[1739349636676,3.2078,2629.9,2629.6,0.6091]
[1739349637084,4.8888,2629.9,2629.6,0.6091]
[1739349638986,4.8888,2629.9,2629.1,40.8]
[1739349639185,0.06096548,2629.8,2629.2,1.2094]
[1739349639383,0.06096548,2629.8,2629.3,3.39754405]
[1739349639582,4.8888,2629.9,2629.3,3.39754405]
[1739349639785,4.8888,2629.9,2629.3,3.96504405]
[1739349640486,3.2078,2629.9,2629.3,3.96504405]
[1739349641080,0.00570255,2630.2,2629.6,3.39754405]
[1739349641380,0.00570255,2630.2,2629.9,3.39754405]
[1739349642393,0.00570255,2630.2,2629.7,1.2061]
[1739349642584,6.60534405,2629.8,2629.0,3.39754405]
[1739349642781,3.45586186,2629.7,2629.1,0.6008]
[1739349643086,0.06096186,2629.6,2629.1,0.6008]
[1739349645087,3.2078,2629.5,2629.1,0.6008]
[1739349645281,0.06097863,2629.4,2629.1,0.6008]
[1739349645477,3.2078,2629.2,2628.9,40.8]
[1739349645682,0.5638,2629.1,2628.9,40.8]
[1739349645879,2.795,2629.1,2628.9,40.8]
[1739349647585,3.3517,2629.1,2628.9,40.8]
[1739349648388,3.3517,2629.1,2628.5,0.6095]
[1739349648886,3.3517,2629.1,2628.7,40.8]
[1739349650091,2.795,2629.1,2628.7,40.8]
[1739349651089,2.2448,2629.1,2628.7,40.8]
[1739349654388,0.06098984,2629.0,2628.7,40.8]
[1739349654689,0.06098984,2629.0,2627.9,0.19435112]
[1739349654690,3.2078,2628.8,2627.9,3.2078]
[1739349654884,3.2078,2628.2,2627.5,3.39754405]
[1739349655190,4.8888,2628.5,2627.8,6.60534405]
[1739349655392,4.8888,2628.5,2627.9,1.1483]
[1739349655586,4.8888,2628.5,2627.9,1.7358]
[1739349656787,4.8888,2628.5,2628.1,3.39754405]
[1739349657191,1.681,2628.5,2628.1,6.60534405]
[1739349658791,0.00570255,2628.6,2628.1,6.60534405]
[1739349659192,0.00570255,2628.6,2628.4,6.60534405]
[1739349659387,0.00570255,2628.6,2628.5,1.1499]
[1739349659983,0.00570255,2628.6,2628.5,42.5544]
[1739349663196,0.00570255,2628.6,2628.5,45.95194405]
[1739349674901,0.00570255,2628.6,2628.5,45.34744405]
[1739349676293,0.00570255,2628.6,2628.5,41.9499]
[1739349676502,0.00570255,2628.6,2628.4,3.2078]
[1739349677094,0.00570255,2628.6,2628.5,40.8]
[1739349679403,0.00570255,2628.6,2628.4,3.2078]
[1739349679601,1.68670255,2628.6,2628.4,3.2078]
[1739349679908,0.06100218,2628.5,2628.4,3.2078]
[1739349680109,1.68670255,2628.6,2628.4,3.2078]
[1739349681005,1.68670255,2628.6,2628.5,0.00313939]
[1739349681213,1.74770366,2628.6,2628.5,0.00313939]
[1739349682820,0.76097,2628.4,2627.9,40.8]
[1739349683009,3.2078,2628.1,2627.9,40.8]
[1739349683309,2.92911596,2628.0,2627.9,40.8]
[1739349685111,2.8681,2628.0,2627.9,40.8]
[1739349685307,2.92911534,2628.0,2627.9,40.8]
[1739349685709,2.92911534,2628.0,2627.5,3.2078]
[1739349686007,0.64451534,2627.9,2627.5,3.2078]
[1739349686208,0.5835,2627.9,2627.6,40.8]
[1739349686413,3.96893,2627.8,2627.6,40.8]
[1739349686610,0.0610218,2627.7,2627.3,1.1603]
[1739349686807,0.0610218,2627.7,2627.2,3.2078]
[1739349687108,0.0610218,2627.7,2627.3,40.8]
[1739349687415,0.5835,2627.9,2627.6,3.39754405]
[1739349688212,0.5835,2627.9,2627.3,40.8]
[1739349688213,0.5835,2627.9,2627.3,44.19754405]
[1739349688915,0.0610182,2627.8,2627.3,44.19754405]
[1739349689116,0.5835,2627.9,2627.3,44.19754405]
[1739349689315,0.0610187,2627.8,2627.3,44.19754405]
[1739349689516,0.5835,2627.9,2627.3,44.19754405]
[1739349689817,0.06101968,2627.8,2627.3,44.19754405]
[1739349690013,0.06101968,2627.8,2627.3,40.8]